[Event "Titled Tuesday Blitz June 29 2021"]
[White "TokChess"]
[Black "Sychev_Klementy"]
[WhiteElo "2438"]
[BlackElo "2854"]
[Result "1-0"]
[Round "01"]
[TimeControl "180+1"]
[Date "2021.06.29"]
[WhiteClock "0:00:03"]
[BlackClock "0:00:07"]

1. c4 {[%clk 0:02:58]}  e6 {[%clk 0:02:53]} 2. Nc3 {[%clk 0:02:57]}  d5 {[%clk 0:02:53]} 3. e3 {[%clk 0:02:57]}  Nf6 {[%clk 0:02:52]} 4. b3 {[%clk 0:02:57]}  c5 {[%clk 0:02:51]} 5. Nf3 {[%clk 0:02:57]}  d4 {[%clk 0:02:51]} 6. Ne2 {[%clk 0:02:54]}  Nc6 {[%clk 0:02:49]} 7. d3 {[%clk 0:02:46]}  e5 {[%clk 0:02:49]} 8. e4 {[%clk 0:02:46]}  Bd6 {[%clk 0:02:33]} 9. Ng3 {[%clk 0:02:44]}  O-O {[%clk 0:02:29]} 10. Be2 {[%clk 0:02:45]}  a6 {[%clk 0:02:27]} 11. O-O {[%clk 0:02:44]}  b5 {[%clk 0:02:26]} 12. Nh4 {[%clk 0:02:33]}  g6 {[%clk 0:02:25]} 13. Bh6 {[%clk 0:02:27]}  Re8 {[%clk 0:02:19]} 14. Qd2 {[%clk 0:02:26]}  Ng4 {[%clk 0:01:59]} 15. Bxg4 {[%clk 0:01:51]}  Bxg4 {[%clk 0:01:54]} 16. Bg5 {[%clk 0:01:48]}  f6 {[%clk 0:01:42]} 17. Bh6 {[%clk 0:01:46]}  Be6 {[%clk 0:01:40]} 18. Qe2 {[%clk 0:01:20]}  Rb8 {[%clk 0:01:21]} 19. f4 {[%clk 0:00:35]}  exf4 {[%clk 0:01:20]} 20. Bxf4 {[%clk 0:00:36]}  Bxf4 {[%clk 0:01:20]} 21. Rxf4 {[%clk 0:00:37]}  g5 {[%clk 0:01:20]} 22. Nhf5 {[%clk 0:00:37]}  bxc4 {[%clk 0:01:12]} 23. bxc4 {[%clk 0:00:35]}  Ne5 {[%clk 0:01:10]} 24. Rf2 {[%clk 0:00:30]}  Rf8 {[%clk 0:01:07]} 25. h4 {[%clk 0:00:27]}  Kh8 {[%clk 0:00:57]} 26. Raf1 {[%clk 0:00:26]}  g4 {[%clk 0:00:56]} 27. h5 {[%clk 0:00:18]}  Rb6 {[%clk 0:00:48]} 28. Qd2 {[%clk 0:00:18]}  Rf7 {[%clk 0:00:46]} 29. Nh6 {[%clk 0:00:17]}  Rf8 {[%clk 0:00:45]} 30. Nhf5 {[%clk 0:00:17]}  Rc6 {[%clk 0:00:44]} 31. Qh6 {[%clk 0:00:15]}  Rf7 {[%clk 0:00:44]} 32. Nh4 {[%clk 0:00:12]}  Qf8 {[%clk 0:00:38]} 33. Qd2 {[%clk 0:00:11]}  a5 {[%clk 0:00:28]} 34. h6 {[%clk 0:00:12]}  a4 {[%clk 0:00:28]} 35. Nh5 {[%clk 0:00:12]}  a3 {[%clk 0:00:27]} 36. Rxf6 {[%clk 0:00:11]}  Rcc7 {[%clk 0:00:20]} 37. Qg5 {[%clk 0:00:09]}  Nxd3 {[%clk 0:00:08]} 38. e5 {[%clk 0:00:08]}  Qg8 {[%clk 0:00:07]} 39. Ng7 {[%clk 0:00:06]}  Bxc4 {[%clk 0:00:06]} 40. e6 {[%clk 0:00:04]}  Rxf6 {[%clk 0:00:06]} 41. Qxf6 {[%clk 0:00:04]}  Nb4 {[%clk 0:00:07]} 42. Nh5+ {[%clk 0:00:03]} 1-0


[Site "https://www.chess.com"]

[Event "Titled Tuesday Blitz June 29 2021"]
[White "Triumphmate"]
[Black "olksuna"]
[WhiteElo "2344"]
[BlackElo "2653"]
[Result "0-1"]
[Round "01"]
[TimeControl "180+1"]
[Date "2021.06.29"]
[WhiteClock "0:00:08"]
[BlackClock "0:00:08"]

1. e4 {[%clk 0:02:59]}  c5 {[%clk 0:02:59]} 2. Nf3 {[%clk 0:02:58]}  e6 {[%clk 0:03:00]} 3. d4 {[%clk 0:02:59]}  cxd4 {[%clk 0:03:01]} 4. Nxd4 {[%clk 0:03:00]}  a6 {[%clk 0:03:01]} 5. Nc3 {[%clk 0:02:55]}  b5 {[%clk 0:02:59]} 6. f4 {[%clk 0:02:43]}  Bb7 {[%clk 0:02:57]} 7. Bd3 {[%clk 0:02:40]}  d6 {[%clk 0:02:56]} 8. Nf3 {[%clk 0:02:32]}  Nf6 {[%clk 0:02:52]} 9. a3 {[%clk 0:02:24]}  Be7 {[%clk 0:02:50]} 10. O-O {[%clk 0:02:20]}  Nc6 {[%clk 0:02:45]} 11. Kh1 {[%clk 0:02:15]}  Qc7 {[%clk 0:02:43]} 12. Qe1 {[%clk 0:02:05]}  O-O {[%clk 0:02:36]} 13. Bd2 {[%clk 0:02:05]}  b4 {[%clk 0:02:15]} 14. axb4 {[%clk 0:01:59]}  Nxb4 {[%clk 0:02:16]} 15. Qg3 {[%clk 0:01:58]}  Nxd3 {[%clk 0:02:12]} 16. cxd3 {[%clk 0:01:59]}  Kh8 {[%clk 0:02:08]} 17. Qh3 {[%clk 0:01:58]}  Qb6 {[%clk 0:02:04]} 18. Ng5 {[%clk 0:01:42]}  h6 {[%clk 0:01:55]} 19. f5 {[%clk 0:01:27]}  exf5 {[%clk 0:01:49]} 20. exf5 {[%clk 0:01:04]}  Qxb2 {[%clk 0:01:40]} 21. Rad1 {[%clk 0:00:54]}  Rac8 {[%clk 0:01:35]} 22. Nge4 {[%clk 0:00:39]}  Bxe4 {[%clk 0:01:08]} 23. Nxe4 {[%clk 0:00:40]}  Kh7 {[%clk 0:01:04]} 24. Ng5+ {[%clk 0:00:30]}  Kg8 {[%clk 0:01:01]} 25. Ne4 {[%clk 0:00:30]}  Rc2 {[%clk 0:00:52]} 26. Bc1 {[%clk 0:00:22]}  Qe5 {[%clk 0:00:38]} 27. Bf4 {[%clk 0:00:21]}  Qd5 {[%clk 0:00:34]} 28. Bxh6 {[%clk 0:00:17]}  Nxe4 {[%clk 0:00:19]} 29. dxe4 {[%clk 0:00:13]}  Qxe4 {[%clk 0:00:19]} 30. Bc1 {[%clk 0:00:09]}  Bf6 {[%clk 0:00:16]} 31. Rf4 {[%clk 0:00:08]}  Rxc1 {[%clk 0:00:08]} 0-1


[Site "https://www.chess.com"]

[Event "Titled Tuesday Blitz June 29 2021"]
[White "andrzej"]
[Black "BahadirOzen"]
[WhiteElo "2365"]
[BlackElo "2702"]
[Result "0-1"]
[Round "01"]
[TimeControl "180+1"]
[Date "2021.06.29"]
[WhiteClock "0:00:02"]
[BlackClock "0:01:30"]

1. e4 {[%clk 0:02:57]}  c6 {[%clk 0:02:59]} 2. d4 {[%clk 0:02:56]}  d5 {[%clk 0:03:00]} 3. exd5 {[%clk 0:02:57]}  cxd5 {[%clk 0:03:00]} 4. Bd3 {[%clk 0:02:57]}  Nc6 {[%clk 0:02:59]} 5. c3 {[%clk 0:02:57]}  Nf6 {[%clk 0:02:59]} 6. Bf4 {[%clk 0:02:58]}  Bg4 {[%clk 0:02:59]} 7. Qb3 {[%clk 0:02:56]}  Qd7 {[%clk 0:02:59]} 8. Nd2 {[%clk 0:02:52]}  e6 {[%clk 0:02:59]} 9. Ngf3 {[%clk 0:02:52]}  Bd6 {[%clk 0:02:59]} 10. Bxd6 {[%clk 0:02:50]}  Qxd6 {[%clk 0:03:00]} 11. O-O {[%clk 0:02:49]}  O-O {[%clk 0:03:00]} 12. Rae1 {[%clk 0:02:45]}  Ne7 {[%clk 0:02:43]} 13. Ne5 {[%clk 0:02:15]}  Bh5 {[%clk 0:02:39]} 14. f4 {[%clk 0:02:13]}  Rab8 {[%clk 0:02:23]} 15. Qc2 {[%clk 0:02:01]}  Bg6 {[%clk 0:02:19]} 16. Bxg6 {[%clk 0:02:00]}  hxg6 {[%clk 0:02:18]} 17. Qd3 {[%clk 0:01:59]}  b5 {[%clk 0:02:16]} 18. a3 {[%clk 0:01:59]}  a5 {[%clk 0:02:15]} 19. Ndf3 {[%clk 0:01:52]}  Ne4 {[%clk 0:02:14]} 20. Ng5 {[%clk 0:01:11]}  f6 {[%clk 0:02:13]} 21. Nxe4 {[%clk 0:00:40]}  dxe4 {[%clk 0:02:12]} 22. Qxe4 {[%clk 0:00:40]}  fxe5 {[%clk 0:02:12]} 23. fxe5 {[%clk 0:00:40]}  Qd5 {[%clk 0:02:10]} 24. Qg4 {[%clk 0:00:36]}  Rf5 {[%clk 0:02:07]} 25. Qh4 {[%clk 0:00:32]}  g5 {[%clk 0:02:07]} 26. Qh5 {[%clk 0:00:25]}  Rbf8 {[%clk 0:02:07]} 27. Rxf5 {[%clk 0:00:23]}  Nxf5 {[%clk 0:02:02]} 28. Qxg5 {[%clk 0:00:23]}  Qd8 {[%clk 0:01:57]} 29. Qg6 {[%clk 0:00:21]}  Qe8 {[%clk 0:01:57]} 30. Qg5 {[%clk 0:00:19]}  a4 {[%clk 0:01:56]} 31. Rf1 {[%clk 0:00:18]}  Ne7 {[%clk 0:01:55]} 32. Rf6 {[%clk 0:00:11]}  Nd5 {[%clk 0:01:54]} 33. Rg6 {[%clk 0:00:10]}  Qf7 {[%clk 0:01:50]} 34. h3 {[%clk 0:00:07]}  Qf1+ {[%clk 0:01:31]} 35. Kh2 {[%clk 0:00:07]}  Qf4+ {[%clk 0:01:32]} 36. Qxf4 {[%clk 0:00:07]}  Nxf4 {[%clk 0:01:33]} 37. Rg4 {[%clk 0:00:07]}  Nd3 {[%clk 0:01:33]} 38. Rg6 {[%clk 0:00:06]}  Kf7 {[%clk 0:01:31]} 39. Rg3 {[%clk 0:00:06]}  Nxb2 {[%clk 0:01:31]} 40. Rf3+ {[%clk 0:00:04]}  Ke7 {[%clk 0:01:30]} 41. Rg3 {[%clk 0:00:04]}  Rf7 {[%clk 0:01:30]} 42. Rd3 {[%clk 0:00:02]}  Nxd3 {[%clk 0:01:30]} 0-1


[Site "https://www.chess.com"]

[Event "Titled Tuesday Blitz June 29 2021"]
[White "bricolageur"]
[Black "Reader777"]
[WhiteElo "2385"]
[BlackElo "2725"]
[Result "1-0"]
[Round "01"]
[TimeControl "180+1"]
[Date "2021.06.29"]
[WhiteClock "0:00:09"]
[BlackClock "0:00:01"]

1. d4 {[%clk 0:03:00]}  Nf6 {[%clk 0:02:58]} 2. c4 {[%clk 0:03:00]}  e6 {[%clk 0:02:57]} 3. Nc3 {[%clk 0:03:00]}  Bb4 {[%clk 0:02:56]} 4. f3 {[%clk 0:03:01]}  d5 {[%clk 0:02:53]} 5. a3 {[%clk 0:03:01]}  Bxc3+ {[%clk 0:02:53]} 6. bxc3 {[%clk 0:03:02]}  c6 {[%clk 0:02:50]} 7. e3 {[%clk 0:03:02]}  O-O {[%clk 0:02:49]} 8. cxd5 {[%clk 0:03:02]}  cxd5 {[%clk 0:02:49]} 9. Bd3 {[%clk 0:03:02]}  b6 {[%clk 0:02:49]} 10. Ne2 {[%clk 0:03:03]}  Ba6 {[%clk 0:02:49]} 11. O-O {[%clk 0:03:03]}  Bxd3 {[%clk 0:02:49]} 12. Qxd3 {[%clk 0:03:03]}  Qc8 {[%clk 0:02:49]} 13. e4 {[%clk 0:03:03]}  Qa6 {[%clk 0:02:47]} 14. Qe3 {[%clk 0:02:58]}  Nc6 {[%clk 0:02:46]} 15. Ng3 {[%clk 0:02:54]}  Qc4 {[%clk 0:02:31]} 16. Bd2 {[%clk 0:02:37]}  Rad8 {[%clk 0:02:23]} 17. e5 {[%clk 0:02:17]}  Nd7 {[%clk 0:02:20]} 18. Nh5 {[%clk 0:02:17]}  Ne7 {[%clk 0:01:47]} 19. g4 {[%clk 0:01:30]}  Ng6 {[%clk 0:01:28]} 20. Be1 {[%clk 0:00:28]}  Rde8 {[%clk 0:01:20]} 21. f4 {[%clk 0:00:13]}  f5 {[%clk 0:01:16]} 22. h3 {[%clk 0:00:12]}  Rf7 {[%clk 0:01:04]} 23. Rd1 {[%clk 0:00:12]}  b5 {[%clk 0:00:58]} 24. Rd2 {[%clk 0:00:12]}  a5 {[%clk 0:00:54]} 25. Rg2 {[%clk 0:00:12]}  Ref8 {[%clk 0:00:51]} 26. Rf3 {[%clk 0:00:09]}  a4 {[%clk 0:00:49]} 27. Kh2 {[%clk 0:00:07]}  Qc8 {[%clk 0:00:47]} 28. Rfg3 {[%clk 0:00:06]}  Qe8 {[%clk 0:00:38]} 29. Rg1 {[%clk 0:00:06]}  Kh8 {[%clk 0:00:29]} 30. Bd2 {[%clk 0:00:05]}  Nb6 {[%clk 0:00:29]} 31. Qe2 {[%clk 0:00:04]}  Nc4 {[%clk 0:00:29]} 32. Bc1 {[%clk 0:00:04]}  Qe7 {[%clk 0:00:25]} 33. Qg2 {[%clk 0:00:03]}  Qe8 {[%clk 0:00:19]} 34. Qe2 {[%clk 0:00:04]}  Ne7 {[%clk 0:00:17]} 35. Qg2 {[%clk 0:00:02]}  Rg8 {[%clk 0:00:13]} 36. Rf3 {[%clk 0:00:03]}  Qf8 {[%clk 0:00:11]} 37. Qf2 {[%clk 0:00:02]}  g6 {[%clk 0:00:09]} 38. Nf6 {[%clk 0:00:02]}  Rxf6 {[%clk 0:00:10]} 39. exf6 {[%clk 0:00:03]}  Qxf6 {[%clk 0:00:11]} 40. Re1 {[%clk 0:00:03]}  Nc8 {[%clk 0:00:11]} 41. Qe2 {[%clk 0:00:03]}  Re8 {[%clk 0:00:10]} 42. g5 {[%clk 0:00:03]}  Qf7 {[%clk 0:00:10]} 43. h4 {[%clk 0:00:04]}  N8d6 {[%clk 0:00:10]} 44. h5 {[%clk 0:00:05]}  Ne4 {[%clk 0:00:11]} 45. Rh3 {[%clk 0:00:05]}  Kg7 {[%clk 0:00:11]} 46. Rh1 {[%clk 0:00:06]}  Kf8 {[%clk 0:00:04]} 47. Kg2 {[%clk 0:00:06]}  Ke7 {[%clk 0:00:02]} 48. hxg6 {[%clk 0:00:07]}  Qxg6 {[%clk 0:00:02]} 49. Rxh7+ {[%clk 0:00:07]}  Kd6 {[%clk 0:00:03]} 50. R1h6 {[%clk 0:00:07]}  Qg8 {[%clk 0:00:03]} 51. Qh5 {[%clk 0:00:08]}  Re7 {[%clk 0:00:03]} 52. Rh8 {[%clk 0:00:07]}  Qg7 {[%clk 0:00:02]} 53. R6h7 {[%clk 0:00:08]}  Qxh7 {[%clk 0:00:01]} 54. Rxh7 {[%clk 0:00:09]} 1-0


[Site "https://www.chess.com"]

[Event "Titled Tuesday Blitz June 29 2021"]
[White "chesslh19"]
[Black "AlexPapasimakopoulos"]
[WhiteElo "2350"]
[BlackElo "2660"]
[Result "0-1"]
[Round "01"]
[TimeControl "180+1"]
[Date "2021.06.29"]
[WhiteClock "0:00:03"]
[BlackClock "0:00:46"]

1. e4 {[%clk 0:02:58]}  e6 {[%clk 0:02:58]} 2. d4 {[%clk 0:02:57]}  d5 {[%clk 0:02:58]} 3. exd5 {[%clk 0:02:51]}  exd5 {[%clk 0:02:58]} 4. Bd3 {[%clk 0:02:49]}  Nc6 {[%clk 0:02:57]} 5. c3 {[%clk 0:02:48]}  Bd6 {[%clk 0:02:58]} 6. Nf3 {[%clk 0:02:28]}  Bg4 {[%clk 0:02:57]} 7. O-O {[%clk 0:02:20]}  Nge7 {[%clk 0:02:56]} 8. Bg5 {[%clk 0:02:11]}  f6 {[%clk 0:02:45]} 9. Bh4 {[%clk 0:02:10]}  h5 {[%clk 0:02:45]} 10. Bg3 {[%clk 0:02:01]}  h4 {[%clk 0:02:43]} 11. Bxd6 {[%clk 0:01:59]}  Qxd6 {[%clk 0:02:44]} 12. Nbd2 {[%clk 0:01:52]}  O-O-O {[%clk 0:02:43]} 13. b4 {[%clk 0:01:49]}  Bf5 {[%clk 0:02:34]} 14. Qc2 {[%clk 0:01:45]}  Qf4 {[%clk 0:02:24]} 15. b5 {[%clk 0:01:35]}  Na5 {[%clk 0:02:14]} 16. Rfe1 {[%clk 0:01:35]}  Bxd3 {[%clk 0:02:07]} 17. Qxd3 {[%clk 0:01:35]}  Qf5 {[%clk 0:02:06]} 18. Qxf5+ {[%clk 0:01:23]}  Nxf5 {[%clk 0:02:07]} 19. a4 {[%clk 0:01:16]}  Rde8 {[%clk 0:01:57]} 20. Kf1 {[%clk 0:01:16]}  Rxe1+ {[%clk 0:01:51]} 21. Rxe1 {[%clk 0:01:13]}  Kd7 {[%clk 0:01:51]} 22. Re2 {[%clk 0:01:03]}  a6 {[%clk 0:01:48]} 23. Ke1 {[%clk 0:00:54]}  axb5 {[%clk 0:01:47]} 24. axb5 {[%clk 0:00:55]}  Ra8 {[%clk 0:01:47]} 25. Kd1 {[%clk 0:00:55]}  g5 {[%clk 0:01:40]} 26. Kc2 {[%clk 0:00:52]}  Nd6 {[%clk 0:01:40]} 27. Re1 {[%clk 0:00:41]}  Nxb5 {[%clk 0:01:36]} 28. g3 {[%clk 0:00:34]}  hxg3 {[%clk 0:01:34]} 29. hxg3 {[%clk 0:00:34]}  Rh8 {[%clk 0:01:35]} 30. Nb3 {[%clk 0:00:29]}  Na3+ {[%clk 0:01:23]} 31. Kb2 {[%clk 0:00:27]}  N3c4+ {[%clk 0:01:20]} 32. Kc2 {[%clk 0:00:27]}  Nxb3 {[%clk 0:01:18]} 33. Kxb3 {[%clk 0:00:27]}  Ra8 {[%clk 0:01:15]} 34. Re2 {[%clk 0:00:16]}  Ra3+ {[%clk 0:01:11]} 35. Kc2 {[%clk 0:00:16]}  Nd6 {[%clk 0:01:07]} 36. Nd2 {[%clk 0:00:15]}  Nb5 {[%clk 0:01:05]} 37. Nb1 {[%clk 0:00:15]}  Ra1 {[%clk 0:00:59]} 38. f4 {[%clk 0:00:11]}  Rxb1 {[%clk 0:00:56]} 39. fxg5 {[%clk 0:00:10]}  Na3+ {[%clk 0:00:53]} 40. Kd3 {[%clk 0:00:08]}  Rd1+ {[%clk 0:00:48]} 41. Ke3 {[%clk 0:00:07]}  fxg5 {[%clk 0:00:46]} 42. Kf3 {[%clk 0:00:07]}  Rd3+ {[%clk 0:00:46]} 43. Kg4 {[%clk 0:00:07]}  Nb5 {[%clk 0:00:44]} 44. Re5 {[%clk 0:00:04]}  Nxc3 {[%clk 0:00:44]} 45. Rxg5 {[%clk 0:00:04]}  Rxg3+ {[%clk 0:00:44]} 46. Kxg3 {[%clk 0:00:02]}  Ne4+ {[%clk 0:00:44]} 47. Kf4 {[%clk 0:00:02]}  Nxg5 {[%clk 0:00:45]} 48. Kxg5 {[%clk 0:00:03]}  Ke6 {[%clk 0:00:46]} 0-1


[Site "https://www.chess.com"]

[Event "Titled Tuesday Blitz June 29 2021"]
[White "erichansen"]
[Black "onnoelgersma"]
[WhiteElo "2922"]
[BlackElo "2449"]
[Result "1-0"]
[Round "01"]
[TimeControl "180+1"]
[Date "2021.06.29"]
[WhiteClock "0:01:49"]
[BlackClock "0:00:20"]

1. e4 {[%clk 0:02:55]}  Nc6 {[%clk 0:03:00]} 2. Nf3 {[%clk 0:02:55]}  d6 {[%clk 0:02:59]} 3. Nc3 {[%clk 0:02:52]}  Nf6 {[%clk 0:02:59]} 4. d4 {[%clk 0:02:51]}  g6 {[%clk 0:03:00]} 5. d5 {[%clk 0:02:48]}  Nb8 {[%clk 0:03:00]} 6. Be2 {[%clk 0:02:35]}  Bg7 {[%clk 0:03:00]} 7. O-O {[%clk 0:02:36]}  O-O {[%clk 0:03:00]} 8. Re1 {[%clk 0:02:37]}  c6 {[%clk 0:02:59]} 9. Bf1 {[%clk 0:02:37]}  a6 {[%clk 0:02:48]} 10. a4 {[%clk 0:02:36]}  b6 {[%clk 0:02:27]} 11. Nd4 {[%clk 0:02:23]}  Bb7 {[%clk 0:02:01]} 12. Bc4 {[%clk 0:02:22]}  c5 {[%clk 0:01:37]} 13. Nf3 {[%clk 0:02:19]}  Nbd7 {[%clk 0:01:34]} 14. h3 {[%clk 0:02:19]}  b5 {[%clk 0:00:57]} 15. axb5 {[%clk 0:02:17]}  Nb6 {[%clk 0:00:57]} 16. Bf1 {[%clk 0:02:16]}  axb5 {[%clk 0:00:51]} 17. Rxa8 {[%clk 0:02:17]}  Bxa8 {[%clk 0:00:51]} 18. Bxb5 {[%clk 0:02:18]}  Nfd7 {[%clk 0:00:47]} 19. Bg5 {[%clk 0:02:11]}  Ne5 {[%clk 0:00:46]} 20. Nxe5 {[%clk 0:02:09]}  Bxe5 {[%clk 0:00:47]} 21. Qd2 {[%clk 0:02:01]}  Qc7 {[%clk 0:00:41]} 22. Ra1 {[%clk 0:02:01]}  c4 {[%clk 0:00:36]} 23. Be3 {[%clk 0:01:57]}  Rb8 {[%clk 0:00:29]} 24. Bd4 {[%clk 0:01:53]}  Nd7 {[%clk 0:00:20]} 25. Ra7 {[%clk 0:01:49]} 1-0


[Site "https://www.chess.com"]

[Event "Titled Tuesday Blitz June 29 2021"]
[White "fabianvivasz"]
[Black "Mikhail_Bryakin"]
[WhiteElo "2402"]
[BlackElo "2774"]
[Result "0-1"]
[Round "01"]
[TimeControl "180+1"]
[Date "2021.06.29"]
[WhiteClock "0:00:01"]
[BlackClock "0:00:21"]

1. c4 {[%clk 0:03:00]}  g6 {[%clk 0:02:57]} 2. g3 {[%clk 0:02:51]}  Bg7 {[%clk 0:02:57]} 3. Bg2 {[%clk 0:02:51]}  c6 {[%clk 0:02:57]} 4. Nc3 {[%clk 0:02:50]}  d6 {[%clk 0:02:57]} 5. d4 {[%clk 0:02:50]}  Nf6 {[%clk 0:02:58]} 6. Nf3 {[%clk 0:02:51]}  O-O {[%clk 0:02:58]} 7. O-O {[%clk 0:02:50]}  Nbd7 {[%clk 0:02:48]} 8. e4 {[%clk 0:02:49]}  e5 {[%clk 0:02:46]} 9. h3 {[%clk 0:02:44]}  Re8 {[%clk 0:02:43]} 10. Re1 {[%clk 0:02:38]}  a5 {[%clk 0:02:42]} 11. b3 {[%clk 0:02:34]}  exd4 {[%clk 0:02:39]} 12. Nxd4 {[%clk 0:02:35]}  Nc5 {[%clk 0:02:39]} 13. Bf4 {[%clk 0:02:17]}  Nh5 {[%clk 0:02:23]} 14. Be3 {[%clk 0:02:16]}  Nf6 {[%clk 0:02:22]} 15. Qc2 {[%clk 0:02:13]}  a4 {[%clk 0:02:20]} 16. b4 {[%clk 0:02:12]}  Ne6 {[%clk 0:02:18]} 17. Rad1 {[%clk 0:02:04]}  Qe7 {[%clk 0:02:18]} 18. Nxa4 {[%clk 0:01:53]}  Nxd4 {[%clk 0:02:14]} 19. Bxd4 {[%clk 0:01:51]}  Be6 {[%clk 0:02:13]} 20. Nb6 {[%clk 0:01:41]}  Ra6 {[%clk 0:02:07]} 21. a4 {[%clk 0:01:32]}  c5 {[%clk 0:02:00]} 22. b5 {[%clk 0:01:22]}  Rxb6 {[%clk 0:01:46]} 23. Bxf6 {[%clk 0:01:21]}  Bxf6 {[%clk 0:01:47]} 24. a5 {[%clk 0:01:19]}  Ra6 {[%clk 0:01:18]} 25. bxa6 {[%clk 0:01:18]}  bxa6 {[%clk 0:01:18]} 26. Rb1 {[%clk 0:01:07]}  Bd4 {[%clk 0:01:17]} 27. Rb6 {[%clk 0:01:02]}  Qg5 {[%clk 0:00:53]} 28. Kh2 {[%clk 0:00:53]}  h5 {[%clk 0:00:54]} 29. f4 {[%clk 0:00:39]}  Qd8 {[%clk 0:00:52]} 30. Rxa6 {[%clk 0:00:27]}  h4 {[%clk 0:00:52]} 31. g4 {[%clk 0:00:20]}  g5 {[%clk 0:00:52]} 32. f5 {[%clk 0:00:11]}  Bd7 {[%clk 0:00:52]} 33. Kh1 {[%clk 0:00:07]}  Qc7 {[%clk 0:00:47]} 34. Rb1 {[%clk 0:00:05]}  Bc6 {[%clk 0:00:45]} 35. e5 {[%clk 0:00:03]}  Bxg2+ {[%clk 0:00:37]} 36. Qxg2 {[%clk 0:00:03]}  Rxe5 {[%clk 0:00:29]} 37. Ra8+ {[%clk 0:00:02]}  Kg7 {[%clk 0:00:27]} 38. a6 {[%clk 0:00:01]}  Qe7 {[%clk 0:00:22]} 39. Qf1 {[%clk 0:00:02]}  Re2 {[%clk 0:00:21]} 40. f6+ {[%clk 0:00:02]}  Bxf6 {[%clk 0:00:21]} 41. Rab8 {[%clk 0:00:02]}  Qe4+ {[%clk 0:00:21]} 42. Kg1 {[%clk 0:00:01]}  Bd4+ {[%clk 0:00:21]} 0-1


[Site "https://www.chess.com"]

[Event "Titled Tuesday Blitz June 29 2021"]
[White "fyall777"]
[Black "nrvisakh"]
[WhiteElo "2436"]
[BlackElo "2854"]
[Result "0-1"]
[Round "01"]
[TimeControl "180+1"]
[Date "2021.06.29"]
[WhiteClock "0:00:01"]
[BlackClock "0:00:33"]

1. d4 {[%clk 0:03:00]}  Nf6 {[%clk 0:02:57]} 2. Bg5 {[%clk 0:03:00]}  Ne4 {[%clk 0:02:51]} 3. h4 {[%clk 0:03:00]}  c5 {[%clk 0:02:49]} 4. dxc5 {[%clk 0:02:58]}  Nc6 {[%clk 0:02:42]} 5. Nd2 {[%clk 0:02:56]}  Nxc5 {[%clk 0:02:40]} 6. e4 {[%clk 0:02:45]}  d6 {[%clk 0:02:40]} 7. c3 {[%clk 0:02:44]}  h6 {[%clk 0:02:39]} 8. Be3 {[%clk 0:02:43]}  e6 {[%clk 0:02:39]} 9. Ngf3 {[%clk 0:02:39]}  Be7 {[%clk 0:02:39]} 10. b4 {[%clk 0:02:15]}  Nd7 {[%clk 0:02:37]} 11. Nc4 {[%clk 0:02:13]}  O-O {[%clk 0:02:12]} 12. Nxd6 {[%clk 0:02:03]}  Nf6 {[%clk 0:02:11]} 13. Nxc8 {[%clk 0:02:01]}  Qxc8 {[%clk 0:02:11]} 14. Bd3 {[%clk 0:01:34]}  Rd8 {[%clk 0:02:09]} 15. Qc2 {[%clk 0:01:32]}  Ng4 {[%clk 0:02:01]} 16. Bf4 {[%clk 0:01:26]}  Bxb4 {[%clk 0:01:58]} 17. O-O {[%clk 0:01:10]}  Bc5 {[%clk 0:01:50]} 18. e5 {[%clk 0:01:07]}  Ne7 {[%clk 0:01:45]} 19. Rad1 {[%clk 0:00:59]}  Nd5 {[%clk 0:01:41]} 20. Bc1 {[%clk 0:00:48]}  Bb6 {[%clk 0:01:40]} 21. c4 {[%clk 0:00:39]}  Nb4 {[%clk 0:01:28]} 22. Bh7+ {[%clk 0:00:39]}  Kh8 {[%clk 0:01:29]} 23. Qb1 {[%clk 0:00:36]}  Qxc4 {[%clk 0:01:21]} 24. Rde1 {[%clk 0:00:21]}  Nd3 {[%clk 0:01:08]} 25. Re4 {[%clk 0:00:19]}  Qc3 {[%clk 0:00:40]} 26. Rxg4 {[%clk 0:00:18]}  Kxh7 {[%clk 0:00:40]} 27. Rd1 {[%clk 0:00:02]}  Rac8 {[%clk 0:00:40]} 28. Be3 {[%clk 0:00:01]}  Bxe3 {[%clk 0:00:36]} 29. fxe3 {[%clk 0:00:01]}  Qc2 {[%clk 0:00:33]} 0-1


[Site "https://www.chess.com"]

[Event "Titled Tuesday Blitz June 29 2021"]
[White "goofypenguin96"]
[Black "Indianlad"]
[WhiteElo "2460"]
[BlackElo "2951"]
[Result "0-1"]
[Round "01"]
[TimeControl "180+1"]
[Date "2021.06.29"]
[WhiteClock "0:00:51"]
[BlackClock "0:01:35"]

1. e4 {[%clk 0:02:59]}  g6 {[%clk 0:02:57]} 2. d4 {[%clk 0:02:59]}  Bg7 {[%clk 0:02:58]} 3. c4 {[%clk 0:02:59]}  d6 {[%clk 0:02:57]} 4. Nc3 {[%clk 0:02:58]}  Nf6 {[%clk 0:02:58]} 5. f3 {[%clk 0:02:58]}  O-O {[%clk 0:02:58]} 6. Be3 {[%clk 0:02:58]}  e5 {[%clk 0:02:58]} 7. d5 {[%clk 0:02:57]}  Nh5 {[%clk 0:02:57]} 8. Nge2 {[%clk 0:02:54]}  f5 {[%clk 0:02:57]} 9. Qd2 {[%clk 0:02:51]}  Nd7 {[%clk 0:02:31]} 10. O-O-O {[%clk 0:02:45]}  a6 {[%clk 0:02:30]} 11. g4 {[%clk 0:02:41]}  fxg4 {[%clk 0:02:28]} 12. fxg4 {[%clk 0:02:42]}  Nhf6 {[%clk 0:02:28]} 13. h3 {[%clk 0:02:42]}  b5 {[%clk 0:02:28]} 14. Qd3 {[%clk 0:02:25]}  bxc4 {[%clk 0:02:26]} 15. Qxc4 {[%clk 0:02:24]}  Nb6 {[%clk 0:02:26]} 16. Bxb6 {[%clk 0:02:19]}  cxb6 {[%clk 0:02:26]} 17. Bg2 {[%clk 0:02:18]}  b5 {[%clk 0:02:27]} 18. Qd3 {[%clk 0:02:15]}  b4 {[%clk 0:02:26]} 19. Nb1 {[%clk 0:02:10]}  Bd7 {[%clk 0:02:27]} 20. Nd2 {[%clk 0:02:09]}  Bb5 {[%clk 0:02:25]} 21. Qe3 {[%clk 0:02:07]}  Nd7 {[%clk 0:01:46]} 22. Kb1 {[%clk 0:01:56]}  Qb6 {[%clk 0:01:46]} 23. Qxb6 {[%clk 0:01:51]}  Nxb6 {[%clk 0:01:47]} 24. Nc1 {[%clk 0:01:44]}  Bh6 {[%clk 0:01:42]} 25. Nf3 {[%clk 0:01:33]}  Be2 {[%clk 0:01:41]} 26. g5 {[%clk 0:01:29]}  Bxd1 {[%clk 0:01:41]} 27. Rxd1 {[%clk 0:01:29]}  Bg7 {[%clk 0:01:41]} 28. Nd3 {[%clk 0:01:29]}  a5 {[%clk 0:01:41]} 29. Rc1 {[%clk 0:01:28]}  Rac8 {[%clk 0:01:41]} 30. b3 {[%clk 0:01:25]}  Rxc1+ {[%clk 0:01:41]} 31. Kxc1 {[%clk 0:01:26]}  h6 {[%clk 0:01:41]} 32. h4 {[%clk 0:01:25]}  hxg5 {[%clk 0:01:41]} 33. hxg5 {[%clk 0:01:26]}  Nd7 {[%clk 0:01:39]} 34. Kd2 {[%clk 0:01:24]}  Rf7 {[%clk 0:01:39]} 35. Ke3 {[%clk 0:01:23]}  Nb6 {[%clk 0:01:38]} 36. Bh3 {[%clk 0:01:23]}  Rc7 {[%clk 0:01:39]} 37. Be6+ {[%clk 0:01:19]}  Kh7 {[%clk 0:01:40]} 38. Nh4 {[%clk 0:01:19]}  Bf8 {[%clk 0:01:36]} 39. Nf2 {[%clk 0:01:17]}  Be7 {[%clk 0:01:37]} 40. Nf3 {[%clk 0:01:12]}  Rc3+ {[%clk 0:01:35]} 41. Ke2 {[%clk 0:01:12]}  a4 {[%clk 0:01:35]} 42. Ng4 {[%clk 0:01:09]}  axb3 {[%clk 0:01:35]} 43. axb3 {[%clk 0:01:09]}  Rxb3 {[%clk 0:01:36]} 44. Nf6+ {[%clk 0:01:09]}  Kg7 {[%clk 0:01:36]} 45. Ne8+ {[%clk 0:01:04]}  Kf8 {[%clk 0:01:36]} 46. Nf6 {[%clk 0:01:04]}  Rxf3 {[%clk 0:01:34]} 47. Kxf3 {[%clk 0:00:51]}  b3 {[%clk 0:01:35]} 0-1


[Site "https://www.chess.com"]